Cogmind - Beta 14 @@@ ROGUE MODE // 2024.10.31 @ 10:24:26 Player: Flawless Result: Self-destructed Performance ------------- Evolutions (0) 0 Regions Visited (4) 800 Robots Destroyed (0) 0 Value Destroyed (0) 0 Prototype IDs (0) 0 Alien Tech Used (0) 0 Bonus (289) 289 TOTAL SCORE: 1089 Bonus ------- Aligned with FarCom 300 Friendly Fire -11 Cogmind --------- Core Integrity 105/250 Matter 254/300 Energy 100/100 System Corruption 0% Temperature Cool (20) Movement Core (3400) Ox67 Location -9/Mines Parts ------- > --- POWER (1) -------- (None) > --- PROPULSION (2) --- (None) > --- UTILITY (2) ------ Humpback > --- WEAPON (2) ------- Light Cannon > --- INVENTORY (35) --- Light Treads Improved Heat Sink Medium Battery (150) Large Matter Pod (109) Light Assault Rifle Light Assault Rifle Peak State ------------ > --- POWER ------------ Ion Engine > --- PROPULSION ------- Wheel Wheel > --- UTILITY ---------- Improved Heat Sink Large Matter Pod > --- WEAPON ----------- Assault Rifle Light Assault Rifle > --- INVENTORY -------- Light Treads Light Assault Rifle Light Cannon [Rating: 9] Favorites ----------- Power Ion Engine Engine Ion Engine Propulsion Wheel Treads Light Treads Wheel Wheel Utility Humpback Device Improved Heat Sink Storage Humpback Weapon Light Assault Rifle Ballistic Gun Light Assault Rifle Ballistic Cannon Light Cannon Build | -11 -10 -10 -10 -9 ------- Run | Yrd Mat Min Exi Min Slots Evolved . | . . . . . Power . | . . . . . Propulsion . | . . . . . Utility . | . . . . . Weapon . | . . . . . Parts Attached 13 | 7 1 1 3 1 Power 2 | 1 . . 1 . Engine 2 | 1 . . 1 . Core . | . . . . . Reactor . | . . . . . Propulsion 4 | 4 . . . . Treads 2 | 2 . . . . Leg . | . . . . . Wheel 2 | 2 . . . . Hover . | . . . . . Flight . | . . . . . Utility 4 | . 1 1 2 . Device 1 | . . 1 . . Storage 3 | . 1 . 2 . Processor . | . . . . . Hackware . | . . . . . Protection . | . . . . . Artifact . | . . . . . Weapon 3 | 2 . . . 1 Energy Gun . | . . . . . Energy Cannon . | . . . . . Ballistic Gun 2 | 2 . . . . Ballistic Cannon 1 | . . . . 1 Launcher . | . . . . . Special Weapon . | . . . . . Impact Weapon . | . . . . . Slashing Weapon . | . . . . . Piercing Weapon . | . . . . . Special Melee Weapon . | . . . . . Unidentified Prototypes . | . . . . . Parts Lost 4 | . . . . 4 Power 1 | . . . . 1 Propulsion 2 | . . . . 2 Utility . | . . . . . Weapon 1 | . . . . 1 Highest Loss Streak 4 | . . . . 4 To Critical Strikes . | . . . . . Average Slot Usage (%) 84 | . 74 87 86 80 Engine 13 | . 14 14 14 13 Wheel 27 | . 28 28 28 25 Device 1 | . . 2 1 . Storage 13 | . 3 14 13 14 Ballistic Gun 27 | . 28 28 28 25 Peak Build Rating 9 | 5 6 9 9 7 Average Rating 7 | 4 5 6 7 6 On Entrance 5 | . 5 6 9 7 Naked Turns . | . . . . . Heaviest Build 208 | 8 11 12 208 208 Greatest Support 40 | 40 20 20 20 20 Greatest Overweight (x) 20 | . . . 10 20 Average Overweight (x) 5 | . . . 8 10 Largest Inventory Capacity 35 | 5 5 5 35 35 Average Capacity 27 | 5 5 5 32 35 Most Carried 8 | 2 2 4 8 6 Average Carried 5 | . . 2 6 6 Final Capacity 35 | 5 5 5 35 35 Final Carried 6 | . 1 3 6 6 Class Distribution -------------------- 74% | Hauler-Mutant 25% | Mutant Dominant Class ---------------- Mutant | -10/Materials Mutant | -10/Mines Hauler-Mutant | -10/Exiles Hauler-Mutant | -9/Mines Resources | -11 -10 -10 -10 -9 ----------- Run | Yrd Mat Min Exi Min Matter Collected 427 | 243 . 174 10 . Remotely . | . . . . . Salvage Created . | . . . . . Parts . | . . . . . Haulers Intercepted . | . . . . . Recyclers Shooed . | . . . . . Parts Field Recycled . | . . . . . Retrieved Matter . | . . . . . Parts Self-Destructed . | . . . . . Prevented . | . . . . . Kills | -11 -10 -10 -10 -9 ------- Run | Yrd Mat Min Exi Min Combat Hostiles Destroyed . | . . . . . Classes Destroyed . | . . . . . Best Kill Streak . | . . . . . Combat Bots Only . | . . . . . Max Kills in Single Turn . | . . . . . Gunslinging . | . . . . . Exploded . | . . . . . Melee . | . . . . . Uniques/NPCs Destroyed . | . . . . . Combat | -11 -10 -10 -10 -9 -------- Run | Yrd Mat Min Exi Min Hostile Shots Fired 45 | . . 2 . 43 Missed 12 | . . 1 . 11 Damage Taken 790 | . . 8 . 782 Core 145 | . . . . 145 Absorbed by Shields . | . . . . . Core Remaining (%) 100 | 100 . . . . Volleys Fired 11 | . . 2 . 9 Largest 2 | . . 2 . 2 Hottest 40 | . . 40 . 40 Shots Fired 16 | . . 4 . 12 Gun 10 | . . 4 . 6 Cannon 6 | . . . . 6 Launcher . | . . . . . Special . | . . . . . Kinetic 16 | . . 4 . 12 Thermal . | . . . . . Explosive . | . . . . . Electromagnetic . | . . . . . Robot Hit Streak 2 | . . 2 . 2 Robot Miss Streak 3 | . . 2 . 3 Penetration Max . | . . . . . Secondary Targets . | . . . . . Shots Hit Robots 7 | . . 2 . 5 Core Hits 4 | . . 1 . 3 Critical Kills . | . . . . . Critical Parts Destroyed . | . . . . . Critical Strikes . | . . . . . Melee Attacks . | . . . . . Impact . | . . . . . Slashing . | . . . . . Piercing . | . . . . . Sneak Attacks . | . . . . . Combat Hostiles . | . . . . . Follow-up Attacks . | . . . . . Damage Inflicted 98 | . . 21 . 77 Guns 62 | . . 21 . 41 Cannons 36 | . . . . 36 Explosions . | . . . . . Melee . | . . . . . Ramming . | . . . . . Kinetic 98 | . . 21 . 77 Thermal . | . . . . . Explosive . | . . . . . Electromagnetic . | . . . . . Impact . | . . . . . Slashing . | . . . . . Piercing . | . . . . . Highest Corruption . | . . . . . Average Corruption . | . . . . . Corruption Purged . | . . . . . Corruption Blocked . | . . . . . Overload Shots . | . . . . . Overflow Damage . | . . . . . Projectiles . | . . . . . Explosions . | . . . . . Melee . | . . . . . Knockbacks 2 | . . . . 2 Impact . | . . . . . Kinetic 2 | . . . . 2 Secondary . | . . . . . Self-Inflicted Damage . | . . . . . Shots . | . . . . . Rammed . | . . . . . Targets Rammed . | . . . . . Kicked . | . . . . . Crushed . | . . . . . Highest Temperature 20 | . . . . 20 Average Temperature 14 | . . . . 14 Received Heat Transfer 80 | . . . . 80 Siege Activations . | . . . . . Robots Corrupted . | . . . . . Combat Hostiles . | . . . . . Parts Fried . | . . . . . Impact Corruptions . | . . . . . Robots Melted . | . . . . . Combat Hostiles . | . . . . . Parts Melted . | . . . . . Heat Transferred . | . . . . . Parts Sabotaged . | . . . . . Parts Stolen . | . . . . . Parts Stripped . | . . . . . Power Chain Reactions . | . . . . . Alert | -11 -10 -10 -10 -9 ------- Run | Yrd Mat Min Exi Min Peak Influence . | . . . . . Initial . | . . . . . Average . | . . . . . Maximum Alert Level . | . . . . . Low Security (%) 100 | 100 100 100 . 100 Level 1 . | . . . . . Level 2 . | . . . . . Level 3 . | . . . . . Level 4 . | . . . . . Level 5 . | . . . . . High Security . | . . . . . Max Security . | . . . . . Squads Dispatched . | . . . . . Investigation . | . . . . . Extermination . | . . . . . Reinforcement . | . . . . . Assault . | . . . . . Garrison . | . . . . . Intercept . | . . . . . Searches Triggered . | . . . . . Construction Impeded . | . . . . . Haulers Reinforced . | . . . . . Active Scanning Responses . | . . . . . Cargo Convoy Interrupts . | . . . . . Stealth | -11 -10 -10 -10 -9 --------- Run | Yrd Mat Min Exi Min Distress Signals . | . . . . . Communications Jammed . | . . . . . Distress Signals . | . . . . . Times Spotted 15 | . 1 5 . 9 Peak Tracking Total 7 | . 1 2 . 7 Tactical Retreats . | . . . . . Traps | -11 -10 -10 -10 -9 ------- Run | Yrd Mat Min Exi Min Traps Triggered . | . . . . . Indirectly . | . . . . . Trap Hack Attempts . | . . . . . Triggered . | . . . . . Disarmed . | . . . . . Reprogrammed . | . . . . . Reused . | . . . . . Traps Extracted . | . . . . . Installed . | . . . . . Triggered . | . . . . . Machines | -11 -10 -10 -10 -9 ---------- Run | Yrd Mat Min Exi Min Machines Disabled . | . . . . . Max in Single Turn . | . . . . . Machines Repaired . | . . . . . Machines Dismantled . | . . . . . Machines Sabotaged . | . . . . . Overloaded Fab Kills . | . . . . . Hacking | -11 -10 -10 -10 -9 --------- Run | Yrd Mat Min Exi Min Machines Accessed 2 | . . . 2 . Terminals . | . . . . . Fabricators . | . . . . . Repair Stations . | . . . . . Recycling Units . | . . . . . Scanalyzers . | . . . . . Garrison Access . | . . . . . Total Hacks 9 | . . . 9 . Successful 9 | . . . 9 . Failed . | . . . . . Catastrophic . | . . . . . Database Lockouts . | . . . . . Manual 1 | . . . 1 . Terminals . | . . . . . Fabricators . | . . . . . Repair Stations . | . . . . . Recycling Units . | . . . . . Scanalyzers . | . . . . . Garrison Access . | . . . . . Terminal Hacks 9 | . . . 9 . Record 9 | . . . 9 . Fabricator Hacks . | . . . . . Repair Station Hacks . | . . . . . Recycling Unit Hacks . | . . . . . Scanalyzer . | . . . . . Garrison Access Hacks . | . . . . . Unauthorized Hacks . | . . . . . Terminals . | . . . . . Fabricators . | . . . . . Repair Stations . | . . . . . Recycling Units . | . . . . . Scanalyzers . | . . . . . Garrison Access . | . . . . . Data Cores Recovered . | . . . . . Used . | . . . . . Hacking Detections . | . . . . . Full Trace Events . | . . . . . Feedback Events . | . . . . . Feedback Blocked . | . . . . . Robot Schematics Acquired . | . . . . . Robots Built . | . . . . . Authchips . | . . . . . Time . | . . . . . Total Robot Build Rating . | . . . . . Part Schematics Acquired . | . . . . . Parts Built . | . . . . . Authchips . | . . . . . Time . | . . . . . Total Part Build Rating . | . . . . . Parts Repaired . | . . . . . Time . | . . . . . Parts Recycled . | . . . . . Recycled Matter . | . . . . . Retrieved Matter . | . . . . . Retrieved Components . | . . . . . Parts Scanalyzed . | . . . . . Part Schematics Acquired . | . . . . . Parts Damaged . | . . . . . Bothacking | -11 -10 -10 -10 -9 ------------ Run | Yrd Mat Min Exi Min Used RIF Installer . | . . . . . Robots Hacked . | . . . . . Non-combat . | . . . . . Combat . | . . . . . Robot Hacks Applied . | . . . . . Relay Couplers Released . | . . . . . Fabnet Peak Effective % . | . . . . . Robots Rewired . | . . . . . Allies Hacked . | . . . . . Hacks Repelled . | . . . . . Allies | -11 -10 -10 -10 -9 -------- Run | Yrd Mat Min Exi Min Total Allies . | . . . . . Largest Group . | . . . . . Highest-Rated Group . | . . . . . Highest-Rated Ally . | . . . . . Total Orders . | . . . . . Ally Attacks . | . . . . . Total Damage . | . . . . . Kills . | . . . . . Allies Corrupted . | . . . . . Allies Melted . | . . . . . Intel | -11 -10 -10 -10 -9 ------- Run | Yrd Mat Min Exi Min Robot Analysis Total . | . . . . . Derelict Logs Recovered . | . . . . . Drone Launches . | . . . . . Drone Recoveries . | . . . . . Exploration | -11 -10 -10 -10 -9 ------------- Run | Yrd Mat Min Exi Min Turns Passed 1751 | 115 83 182 1175 196 Spaces Moved 980 | 111 95 129 570 75 Core 5 | 5 . . . . Treads 11 | 11 . . . . Legs . | . . . . . Wheels 964 | 95 95 129 570 75 Hover . | . . . . . Flight . | . . . . . Fastest Speed 50 | 50 80 80 80 230 Average Speed 164 | 86 80 80 203 232 Slowest Speed 380 | 160 80 80 230 380 Overloaded Moves . | . . . . . Propulsion Burnouts . | . . . . . Robots Hopped . | . . . . . Cave-ins Triggered . | . . . . . Exploration Rate (%) 30 | 6 21 25 70 32 Regions Visited 4 Branch Regions 3 Pre-discovered Areas 1 | . . . 1 . Known Exits Taken . | . . . . . Unknown Exits Taken 4 | 1 1 1 1 . Scrap Searched 1 | . . 1 . . Spaces Dug . | . . . . . Terrain Destroyed . | . . . . . Melee . | . . . . . Projectile . | . . . . . AOE . | . . . . . Terrain Rammed . | . . . . . Walls Destroyed . | . . . . . Machines Disabled . | . . . . . Actions | -11 -10 -10 -10 -9 --------- Run | Yrd Mat Min Exi Min Total 1106 | 130 101 203 587 85 Wait 78 | 4 4 69 1 . Move 976 | 110 94 128 569 75 Hop . | . . . . . Pick Up 21 | 7 2 3 9 . Fast Attach . | . . . . . Attach 12 | 7 1 1 3 . Detach . | . . . . . Swap 1 | . . . . 1 Drop 7 | 2 . . 5 . Fire 11 | . . 2 . 9 Melee . | . . . . . Ram . | . . . . . Kick . | . . . . . Crush . | . . . . . Escape Stasis . | . . . . . Rewire . | . . . . . Trap . | . . . . . Miscellaneous . | . . . . . Route ------- -11/Scrapyard -10/Materials -10/Mines -10/Exiles -9/Mines History --------- Turn | Location | Event 13 | -11/Scrapyard | Discovered new exit (range 14) 116 | -11/Scrapyard | Entered Materials 183 | -10/Materials | Discovered new exit (range 6) 184 | -10/Materials | Met 8R-AWN 199 | -10/Materials | Entered Mines 200 | -10/Mines | Followed 8R-AWN into the Mines 306 | -10/Mines | Build established: Mutant 372 | -10/Mines | Discovered new exit (range 5) 381 | -10/Mines | Entered Exiles 403 | -10/Exiles | Welcomed by 8R-AWN 415 | -10/Exiles | Met EX-HEX 537 | -10/Exiles | Met EX-DEC 616 | -10/Exiles | Learned location of Zion (-7) 694 | -10/Exiles | Discovered new exit (range 14) 757 | -10/Exiles | Build established: Hauler-Mutant 932 | -10/Exiles | Met EX-BIN 975 | -10/Exiles | Aligned with FarCom system 978 | -10/Exiles | Given EX-Vault access code 1556 | -10/Exiles | Entered Mines 1714 | -9/Mines | Assembled infested the area 1719 | -9/Mines | Assisted by a Guerilla fighting off Assembled 1748 | -9/Mines | Core integrity fell below 50% 1752 | -9/Mines | Self-destructed Last Messages --------------- The unstable cave ceiling collapses. Wheel destroyed. The unstable cave ceiling collapses. Assault Rifle destroyed. as-25357 destroyed. The unstable cave ceiling collapses. Ion Engine destroyed. YI-UF0: "BWOOM!" U-05 Engineer destroyed. as-47055 destroyed. K-01 Serf collects debris. The unstable cave ceiling collapses. YI-UF0 destroyed. T-07 Excavator destroyed. The unstable cave ceiling collapses. as-95195 knocked back. The unstable cave ceiling collapses. Wheel destroyed. The unstable cave ceiling collapses. as-95195 knocked back. Map ----- +----------------------------------------------------+ | | | | | ?????????????????????????????????????????????????? | | ?????????????????????????????????????????????????? | | ?????????????????????????????????????????????????? | | ?????????????????????????????????????????????????? | | ?????????????????????????????????????????????????? | | ?????????????????????????????????????????????????? | | ?????????????????????????????????????????????????? | | ??????????????????????###????????????????????????? | | ?????????????????????## ##??????????????????????? | | ????????????????##??## #??????????????????????? | | ????????????????# ? #??????????????????????? | | ????????????????? ?? ##?????????????????????? | | ?????????????????? ? ##????????????????????? | | ??????????????????? ?? ##???????????????????? | | ????????????#??????# ? #???????????????????? | | ????????????# ????## ## ##???????????????????? | | ????????????# ?## # #???????????????????? | | ????????????# # ] #???????????????????? | | ???????????# a a! #???????????????????? | | ????????? # # a ##?????s????????????? | | ??????????????????## #?????s????????????? | | ???????????????????# aaa #?????s#???????????? | | ???????????????????# % # #????? #???????????? | | ???????????????????# @ #????? #???????????? | | ???????????????????# # ######?? #???????????? | | ???????????????????## | #?# ? #???????????? | | ????????????????????# = ! #?# #? #???????????? | | ????????????????????# ### ## #???????????? | | ????????????????????# ## #???????????? | | ????????????????????# #???????????? | | ????????????????????# # #????????????? | | ????????????????????# ## ##???????????? | | ????????????????????# ?# ########????? | | ????????????????????# ??#### C #?? | | ????????????????????# ?????## #?? | | ???????????????????? ?????# ######??? | | ???????????????????? ??????# #???????? | | ??????????????????? ????????## #???????? | | ?????????????????????????????# #### ##???????? | | ?????????????????????????????# #???######????????? | | ????????????????????????# #### #?????????????????? | | ????????????????????????# #?????????????????? | | ????????????????????????# #### #?????????????????? | | ?????????????????????????????# #######???????????? | | ?????????????????????????????# #???????##### | | ?????????????????????????????####### #???????# | | ???????????????????????????????????# #???????# | | ???????????????????????????????????# #???????# ## | +----------------------------------------------------+ Best States ------------- Heat Dissipation 39 Energy Generation 10 Energy Capacity 250 Matter Stores 429 Matter Capacity 450 Sight Range 16 Terrain Scan Density 10 Evasion (%) 44 Recoil Reduction 2 Item Schematics ----------------- None Robot Schematics ------------------ None Fabricated ------------ Nothing Alien Tech Used ----------------- None Achievements -------------- Tank Tourist Challenges ------------ None Game ------ Seed MediumPitchforkShearcannon Manual? 0 Play Time 00:19:57 Cumulative 1.6 hours Start 2024.10.31 @ 10:06:06 End 2024.10.31 @ 10:24:26 Sessions 1 Manual Loads 0 Difficulty Rogue Special Mode None Game No. 5 Rogue 5 Adventurer 0 Explorer 0 Win Type - Total 0 Types 0/0/0/0/0/0/0/0/0 Lore% 2 Gallery% 4 Achievement% 3 Wizard Run 0 Options --------- Layout 1 ASCII 0 Keyboard 0 Movement Numpad Keybinds 0 Fullscreen 1 Font 24/Proggy Map View 50x35 Zoom Use 0% Tactical HUD 0 Map Filters NONE Filters NONE Steam 1 RUN: 8242d960-b4e7-4c9d-8cdc-eb52dccee891